bitfinex/quotes_ETHUSD_20251118
["timestamp","ask_amount","ask_price","bid_price","bid_amount"]
[1763443792594,0.74,3025.1,3024.4,0.39597269]
[1763443792795,0.284,3025.1,3024.4,0.39597269]
[1763443793395,0.456,3025.0,3024.2,2.89342287]
[1763443793921,0.456,3025.0,3024.3,0.0330655]
[1763443794095,0.456,3025.0,3024.2,2.89342287]
[1763443794485,0.284,3024.9,3024.3,3.9330655]
[1763443794779,0.284,3024.9,3024.4,0.68264884]
[1763443795021,0.74,3024.9,3024.4,0.68264884]
[1763443795218,1.194,3024.8,3024.4,0.68264884]
[1763443795437,2.844,3024.8,3024.4,0.68264884]
[1763443796605,2.844,3024.8,3024.6,2.3248933]
[1763443796808,2.388,3024.8,3024.6,2.3248933]
[1763443797185,2.388,3024.8,3024.4,0.71571324]
[1763443797186,2.388,3024.8,3024.7,2.3248933]
[1763443797610,3.3042,3024.8,3024.6,2.3248933]
[1763443797905,0.9162,3024.8,3024.6,2.3248933]
[1763443798223,0.1069,3024.7,3024.6,2.3248933]
[1763443798528,0.5629,3024.7,3024.6,2.3248933]
[1763443798713,0.5629,3024.7,3024.5,2.3248933]
[1763443799027,0.4602,3024.3,3024.2,2.3248933]
[1763443799327,0.7442,3024.3,3024.2,2.3248933]
[1763443799627,0.7442,3024.3,3024.0,2.3248933]
[1763443799628,1.2002,3024.3,3024.0,2.3248933]
[1763443799836,0.456,3024.2,3024.0,2.3248933]
[1763443799990,0.4602,3024.1,3024.0,2.3248933]
[1763443800329,0.456,3025.1,3024.2,0.4868]
[1763443800494,0.284,3025.0,3024.4,2.32428459]
[1763443800702,0.74,3025.0,3024.4,2.32428459]
[1763443801393,0.456,3024.9,3024.4,2.32428459]
[1763443801702,0.456,3024.9,3024.6,2.32428459]
[1763443801907,0.456,3024.9,3024.5,2.32428459]
[1763443802318,0.284,3025.0,3024.5,2.32428459]
[1763443802532,0.456,3024.9,3024.5,2.32428459]
[1763443802733,0.284,3025.0,3024.6,2.32428459]
[1763443803032,0.002,3025.2,3024.9,2.32428459]
[1763443803331,0.002,3025.2,3025.0,0.03305785]
[1763443803504,0.284,3025.1,3025.0,2.32611996]
[1763443803706,0.7442,3025.1,3024.9,2.32633282]
[1763443803914,0.7442,3025.1,3024.6,2.89342287]
[1763443803915,0.74,3025.1,3024.8,2.32633282]
[1763443804228,0.74,3025.1,3024.1,5.188855]
[1763443804229,0.456,3025.0,3024.4,2.32633282]
[1763443804431,0.6412,3025.0,3024.5,2.32633282]
[1763443804924,0.74,3024.9,3024.5,2.32633282]
[1763443805135,0.002,3025.2,3024.7,2.32633282]
[1763443805303,2.671,3025.1,3024.9,2.81313282]
[1763443805499,2.671,3025.1,3025.0,2.32633282]
[1763443805726,0.283,3025.1,3025.0,2.32633282]
[1763443806243,0.7599,3025.1,3025.0,2.32633282]
[1763443806437,0.7599,3025.1,3024.9,2.32633282]
[1763443807409,0.9416,3025.0,3024.9,2.32633282]
[1763443807732,0.283,3025.1,3024.9,2.32633282]
[1763443808533,0.002,3025.2,3025.0,2.80923282]
[1763443808837,0.283,3025.1,3025.0,2.84229067]
[1763443809040,0.283,3025.1,3025.0,2.80923282]
[1763443809534,0.002,3025.2,3025.0,2.80923282]
[1763443809535,0.002,3025.2,3025.1,0.405504]
[1763443809734,0.285,3025.2,3025.1,1.077104]
[1763443809942,0.285,3025.2,3025.1,1.74168773]
[1763443810331,0.002,3025.6,3025.1,5.94280762]
[1763443810504,0.002,3025.6,3025.5,0.888404]
[1763443810704,0.285,3025.6,3025.5,0.888404]
[1763443810944,0.002,3026.1,3025.5,0.888404]
[1763443810945,0.002,3026.1,3025.6,0.405504]
[1763443811110,0.002,3026.6,3026.1,1.31249664]
[1763443811432,0.002,3026.6,3026.2,1.02554874]
[1763443811645,0.002,3026.6,3026.2,1.51064874]
[1763443811848,0.002,3026.6,3026.2,1.64326659]
[1763443812209,0.285,3026.3,3026.2,1.64326659]
[1763443812409,0.285,3026.3,3026.2,2.06380895]
[1763443812618,0.002,3026.3,3026.2,2.09685369]
[1763443812941,0.285,3026.3,3026.2,2.09685369]
[1763443813454,0.80450929,3026.3,3026.2,2.06380895]
[1763443813750,0.002,3026.6,3026.3,0.405504]
[1763443813954,0.002,3026.6,3026.4,0.92144655]
[1763443814250,0.002,3026.6,3026.4,1.40654655]
[1763443814753,0.002,3026.6,3026.4,1.53915473]
[1763443815253,2.673,3026.5,3026.4,1.53915473]
[1763443815552,2.673,3026.5,3026.4,4.16871974]
[1763443815850,0.002,3026.6,3026.5,1.31249664]
[1763443816054,0.002,3026.9,3026.5,1.40654546]
[1763443816279,0.002,3026.9,3026.7,0.888404]
[1763443816455,0.002,3026.9,3026.7,1.29255851]
[1763443816635,0.002,3026.9,3026.7,1.77765851]
[1763443817038,0.002,3026.9,3026.7,1.74461923]
[1763443817356,0.002,3026.9,3026.7,1.25951923]
[1763443817559,0.114,3026.8,3026.7,0.888404]
[1763443818356,0.114,3026.8,3026.7,1.40654328]
[1763443819221,0.114,3026.8,3026.7,3.13081917]
[1763443819442,0.114,3026.8,3026.7,3.09777989]
[1763443819649,0.114,3026.8,3026.7,2.61267989]
[1763443819856,0.114,3026.8,3026.7,3.4031913]
[1763443820474,0.002,3026.9,3026.7,3.4031913]
[1763443820475,0.002,3026.9,3026.8,0.405504]
[1763443820654,0.219,3026.9,3026.8,8.42012147]
[1763443820849,0.002,3027.6,3027.3,0.405504]
[1763443821180,0.002,3027.6,3027.5,1.77189664]
[1763443821475,0.002,3027.6,3027.5,4.78195917]
[1763443822170,0.285,3027.6,3027.5,4.78195917]
[1763443822370,0.4813,3028.5,3027.7,0.405504]
[1763443822570,0.002,3029.2,3027.7,0.898404]
[1763443822872,0.4813,3028.6,3027.8,0.20446376]
[1763443823048,0.4813,3028.6,3027.7,0.405504]
[1763443823578,0.4813,3028.6,3027.7,1.26490242]
[1763443823755,0.4813,3028.6,3027.8,0.405504]
[1763443823956,0.283,3028.5,3027.8,0.405504]
[1763443824278,0.002,3029.2,3028.2,0.405504]
[1763443824279,0.283,3028.4,3028.2,0.405504]
[1763443824962,0.283,3028.3,3028.2,0.898404]
[1763443825293,1.194,3028.3,3028.2,1.07418424]
[1763443825494,0.283,3028.3,3028.2,2.39197374]
[1763443825843,0.283,3028.3,3028.2,1.89907374]
[1763443826039,0.283,3028.3,3028.2,2.39197374]
[1763443826666,0.283,3028.3,3028.2,2.42499665]
[1763443826864,0.283,3028.3,3028.2,2.39197374]
[1763443827261,0.283,3028.3,3028.2,1.53358424]
[1763443827677,0.7521,3028.3,3028.1,0.8583895]
[1763443827951,0.0555,3028.2,3027.7,0.8583895]
[1763443828168,0.6654,3027.8,3027.3,0.8583895]
[1763443828863,0.6654,3027.8,3027.4,0.405504]
[1763443829064,0.4813,3027.7,3027.3,0.8583895]
[1763443829384,0.4813,3027.7,3027.0,0.7521]
[1763443829385,0.0555,3027.4,3027.2,0.8583895]
[1763443829612,0.283,3027.3,3027.1,0.8583895]
[1763443830172,0.283,3027.3,3027.0,0.8583895]
[1763443830368,0.283,3027.3,3027.2,0.405504]
[1763443831008,1.2334,3027.3,3027.0,0.8583895]
[1763443831156,0.465,3027.1,3026.7,1.50991211]
[1763443831351,0.7643,3027.3,3026.7,1.50991211]
[1763443831352,0.0596,3026.8,3026.7,0.65152261]
[1763443831586,0.0596,3026.8,3026.6,0.8593895]
[1763443831785,0.4813,3027.2,3026.7,0.405504]
[1763443831988,0.4813,3027.2,3026.6,1.05995181]
[1763443832491,0.4813,3027.2,3026.7,0.8583895]
[1763443832697,0.4813,3027.2,3026.7,1.51004443]
[1763443832866,0.5246,3026.8,3026.7,1.91554843]
[1763443833266,0.283,3027.3,3026.7,1.84289337]
[1763443833472,0.283,3027.3,3026.8,0.8933477]
[1763443833873,0.4813,3027.2,3026.8,0.8933477]
[1763443834074,0.4813,3027.2,3026.8,0.86030951]
[1763443834275,0.4813,3027.2,3026.9,0.86030951]
[1763443834475,0.4813,3027.2,3026.8,0.86030951]
[1763443835221,1.193,3027.1,3026.8,0.86030951]
[1763443835427,2.386,3027.1,3026.9,0.86030951]
[1763443836390,2.386,3027.1,3027.0,0.86030951]
[1763443836792,2.8662,3027.1,3027.0,0.86030951]
[1763443837539,0.932,3027.1,3026.7,0.86322569]
[1763443837826,0.283,3027.3,3026.6,0.001]
[1763443837827,0.6796,3026.8,3026.6,0.001]
[1763443837992,0.7937,3026.7,3026.6,0.001]
[1763443839203,0.5107,3026.7,3026.6,0.001]
[1763443839403,0.7937,3026.7,3026.6,0.001]
[1763443839716,0.5107,3026.7,3026.6,0.001]
[1763443839889,0.0589,3026.7,3026.6,0.001]
[1763443840096,0.283,3026.7,3026.6,1.14723362]
[1763443840291,1.215,3026.7,3026.6,0.001]
[1763443840818,0.7632,3026.7,3026.6,0.001]
[1763443841218,0.4518,3027.2,3026.6,1.89435094]
[1763443841434,0.283,3027.1,3027.0,1.15269076]
[1763443841895,1.215,3027.1,3027.0,1.15269076]
[1763443842341,1.215,3027.1,3026.9,1.15269076]
[1763443842497,1.215,3027.1,3026.6,0.001]
[1763443842498,0.932,3027.0,3026.8,1.15269076]
[1763443842706,0.4518,3027.0,3026.9,1.15269076]
[1763443842943,0.283,3027.1,3026.9,1.15269076]
[1763443843124,0.4802,3027.0,3026.9,1.15269076]
[1763443843441,0.932,3027.0,3026.8,1.15269076]
[1763443843737,0.1994,3026.9,3026.8,1.15291257]
[1763443843906,0.1994,3026.9,3026.8,1.44120744]
[1763443844102,0.80251517,3027.1,3026.8,1.44120744]
[1763443844341,0.4518,3027.0,3026.9,1.15291257]
[1763443844646,0.5391,3026.9,3026.8,1.44120744]
[1763443845344,2.9271,3026.9,3026.8,1.44120744]
[1763443845640,2.388,3026.9,3026.8,0.28829487]
[1763443846046,2.9271,3026.9,3026.8,1.44081999]
[1763443846243,2.1849,3026.9,3026.8,0.28829487]
[1763443846540,2.1849,3026.9,3026.6,1.73003615]
[1763443846748,2.1849,3026.9,3026.8,1.15230034]
[1763443847345,0.9909,3026.9,3026.7,1.15230034]
[1763443847513,0.4518,3026.8,3026.7,1.15230034]
[1763443847708,0.4518,3026.8,3026.6,0.001]
[1763443847709,0.932,3026.8,3026.6,1.15330034]
[1763443847910,0.198,3026.7,3026.6,1.15330034]
[1763443848108,0.6498,3026.7,3026.6,1.15330034]
[1763443849407,0.6498,3026.7,3026.6,0.001]
[1763443850044,0.6498,3026.7,3026.6,0.86548768]
[1763443850269,0.6498,3026.7,3026.6,0.001]
[1763443853239,0.9328,3026.7,3026.6,0.001]
[1763443855246,3.3208,3026.7,3026.6,0.001]
[1763443855663,3.1512,3026.7,3026.6,0.001]
[1763443855970,4.50999264,3026.7,3026.6,0.001]
[1763443856346,4.05819264,3026.7,3026.6,0.001]
[1763443856668,5.02958842,3026.7,3026.6,0.001]
[1763443856866,0.51959578,3026.7,3026.6,0.001]
[1763443857236,0.80259578,3026.7,3026.6,0.001]
[1763443857435,0.7632,3026.7,3026.6,1.32887619]
[1763443857659,1.215,3026.7,3026.6,1.32887619]
[1763443857980,0.283,3026.7,3026.6,0.17410362]
[1763443858299,0.4518,3027.4,3026.7,0.405504]
[1763443858458,0.283,3027.3,3027.1,0.86626175]
[1763443858783,0.283,3027.3,3027.2,0.86626175]
[1763443858961,0.283,3027.3,3026.7,0.405504]
[1763443858962,0.283,3027.3,3027.1,1.15501567]
[1763443859164,0.283,3027.3,3027.2,1.15501567]
[1763443859371,0.7348,3027.3,3027.0,1.73252351]
[1763443859571,0.4802,3027.2,3027.0,1.73252351]
[1763443859888,0.283,3027.1,3027.0,1.73252351]
[1763443860287,0.002,3027.6,3027.0,2.23062351]
[1763443860494,0.002,3027.6,3027.5,1.15461812]
[1763443860786,0.285,3027.6,3027.5,1.15461812]
[1763443860990,0.52143918,3027.6,3027.5,0.53113055]
[1763443861196,0.52143918,3027.6,3027.5,1.386504]
[1763443861357,0.002,3028.0,3027.6,0.405504]
[1763443861562,0.002,3028.0,3027.9,0.4981]
[1763443861759,0.002,3028.0,3027.9,0.903604]
[1763443862011,0.002,3028.7,3028.0,0.405504]
[1763443862211,0.002,3028.7,3028.2,0.903604]
[1763443862375,0.002,3028.7,3028.2,7.50818758]
[1763443862693,0.002,3028.7,3028.6,0.4981]
[1763443863093,0.4518,3030.3,3028.7,0.405504]
[1763443863303,0.4518,3030.3,3028.9,0.903604]
[1763443863610,0.4518,3030.9,3029.2,1.31249664]
[1763443863774,0.4518,3031.3,3029.6,0.405504]
[1763443863961,0.4824,3031.2,3030.7,0.85988693]
[1763443864166,0.4824,3031.2,3030.6,0.89288369]
[1763443864601,0.4824,3031.2,3030.6,0.85988693]
[1763443864901,0.4802,3030.7,3030.6,0.85988693]
[1763443865109,0.4802,3030.7,3029.8,0.85988693]
[1763443865336,0.6796,3029.9,3029.4,0.85988693]
[1763443865626,0.7348,3029.8,3029.3,0.85988693]
[1763443865923,0.7348,3029.8,3029.0,0.85988693]
[1763443865924,0.4934,3029.4,3029.0,0.85988693]
[1763443866223,0.4934,3029.4,3028.9,0.66982457]
[1763443866433,0.283,3029.3,3028.6,1.07903432]
[1763443866637,0.283,3029.3,3028.7,0.405504]
[1763443866815,0.283,3029.3,3028.5,1.04908693]
[1763443866816,0.7676,3029.3,3028.5,1.04908693]
[1763443866990,0.7676,3029.3,3028.6,0.85988693]
[1763443867192,0.7676,3029.3,3028.5,1.26864721]
[1763443867423,0.7676,3029.3,3028.6,0.03301855]
[1763443867642,0.283,3029.3,3028.7,0.405504]
[1763443867997,0.283,3029.3,3028.5,1.52078693]
[1763443868215,0.283,3029.3,3028.5,1.78751721]
[1763443868695,0.283,3029.3,3028.5,2.4418924]
[1763443869028,0.1865,3028.6,3028.5,0.65437519]
[1763443869215,0.9629,3028.6,3028.1,0.85988693]
[1763443869537,0.0313,3028.3,3027.7,0.85988693]
[1763443869687,0.0313,3028.3,3027.5,1.14651591]
[1763443869688,0.0313,3028.3,3027.5,0.85988693]
[1763443870014,0.0313,3028.3,3027.2,0.4717]
[1763443870015,0.0313,3028.3,3027.4,0.85988693]
[1763443870326,0.283,3028.2,3027.6,0.85988693]
[1763443870532,0.283,3028.2,3027.7,0.03302837]
[1763443870940,0.283,3028.2,3027.7,0.4717]
[1763443871146,0.283,3028.2,3027.7,1.33158693]
[1763443871344,0.1865,3029.0,3028.2,0.405504]
[1763443871624,0.283,3028.9,3028.2,0.405504]
[1763443871812,0.80224015,3028.9,3028.3,0.19179909]
[1763443872011,0.4846,3028.8,3028.1,0.85988693]
[1763443872322,0.4846,3028.8,3028.0,0.85988693]
[1763443872509,0.4846,3028.8,3027.9,0.85988693]
[1763443872731,0.4846,3028.8,3028.0,0.85988693]
[1763443873256,0.4846,3028.8,3028.1,0.1892]
[1763443873612,0.4846,3028.8,3028.0,0.85988693]
[1763443873814,0.4846,3028.8,3028.0,0.20064028]
[1763443874014,0.4846,3028.8,3027.9,0.85988693]
[1763443874209,0.4846,3028.8,3028.0,0.85988693]
[1763443874517,0.4846,3028.8,3027.9,0.85988693]
[1763443874932,0.4846,3028.8,3027.7,2.20008667]
[1763443874933,0.4846,3028.8,3027.8,0.85988693]
[1763443875311,3.29299264,3028.7,3027.7,1.91345769]
[1763443875607,1.476,3028.6,3027.9,0.405504]
[1763443876051,0.283,3028.6,3028.0,0.50472509]
[1763443876417,0.1865,3029.0,3028.1,0.594704]
[1763443876647,0.283,3028.5,3028.1,0.594704]
[1763443877743,0.283,3028.5,3027.9,0.85988693]
[1763443877744,0.7676,3028.5,3027.9,0.85988693]
[1763443878557,0.283,3028.5,3027.9,0.85988693]
[1763443879840,0.1865,3029.0,3028.4,0.6781]
[1763443880020,0.283,3028.9,3028.5,0.03301964]
[1763443880227,0.283,3028.9,3028.4,0.6781]
[1763443880434,0.283,3028.9,3028.3,0.405504]
[1763443880742,0.283,3028.9,3028.3,1.26539093]
[1763443881126,0.283,3028.9,3028.4,0.85988693]
[1763443881555,0.283,3028.9,3028.5,0.17234909]
[1763443881922,0.283,3028.9,3028.5,0.63044909]
[1763443882159,0.283,3028.9,3028.5,0.17234909]
[1763443882360,0.9285,3028.9,3028.5,1.03223602]
[1763443882536,0.283,3028.9,3028.5,1.03223602]
[1763443882725,0.283,3028.9,3028.5,1.49033602]
[1763443882932,0.283,3028.9,3028.5,0.63044909]
[1763443883178,0.4766,3028.9,3028.5,1.03223602]
[1763443883333,0.9285,3028.9,3028.5,1.03223602]
[1763443883730,0.4766,3028.9,3028.5,0.17234909]
[1763443883935,0.4519,3028.8,3028.5,1.03223602]
[1763443884361,0.4766,3028.9,3028.6,0.85988693]
[1763443885029,0.99581841,3028.9,3028.6,0.85988693]
[1763443885229,0.99581841,3028.9,3028.7,0.85988693]
[1763443885230,2.386,3028.8,3028.7,0.85988693]
[1763443885430,0.51921841,3028.9,3028.7,1.35488693]
[1763443885665,0.51921841,3028.9,3028.8,0.85988693]
[1763443885963,0.80221841,3028.9,3028.8,0.86002225]
[1763443886132,0.80221841,3028.9,3028.7,0.405504]
[1763443886332,0.80221841,3028.9,3028.8,1.14651591]
[1763443886558,0.80221841,3028.9,3028.7,1.14651591]
[1763443886868,0.80221841,3028.9,3028.5,1.89212295]
[1763443886869,0.80221841,3028.9,3028.8,1.64151591]
[1763443887073,0.002,3029.6,3028.9,3.902504]
[1763443887233,0.002,3029.6,3029.5,2.39821215]
[1763443888159,0.285,3029.6,3029.5,2.39821215]
[1763443888359,0.285,3029.6,3029.5,0.91792122]
[1763443888577,0.285,3029.6,3029.5,2.39877259]
[1763443888880,0.285,3029.6,3029.5,1.1362]
[1763443889231,0.285,3029.6,3029.5,0.6781]
[1763443889568,0.285,3029.6,3029.2,0.03301201]
[1763443889569,0.285,3029.6,3029.4,0.405504]
[1763443889769,0.285,3029.6,3029.3,0.405504]
[1763443889933,0.285,3029.6,3029.5,0.900504]
[1763443891031,0.002,3029.9,3029.5,0.900504]
[1763443891344,0.002,3029.9,3029.4,0.33458851]
[1763443891345,0.002,3029.9,3029.8,0.900504]
[1763443891531,0.002,3030.3,3029.8,0.93350947]
[1763443891730,0.002,3030.3,3030.1,1.72188672]
[1763443891962,0.002,3030.3,3030.2,1.75488784]
[1763443892144,0.002,3030.3,3030.2,1.72188672]
[1763443892338,0.285,3030.3,3030.2,1.72188672]
[1763443892740,0.285,3030.3,3030.2,2.21688672]
[1763443892948,0.002,3030.3,3030.2,1.15519379]
[1763443893163,0.285,3030.3,3030.2,3.11245265]
[1763443894041,0.1936,3030.9,3030.3,0.405504]
[1763443894235,0.1936,3030.9,3030.7,0.8608724]
[1763443895145,0.1936,3030.9,3030.2,0.4581]
[1763443895146,0.6455,3030.9,3030.6,0.8608724]
[1763443895343,2.386,3030.8,3030.6,0.8608724]
[1763443895667,0.283,3030.7,3030.6,0.8608724]
[1763443895868,1.2394,3030.7,3030.6,0.8608724]
[1763443896249,1.2394,3030.7,3030.4,0.8608724]
[1763443896250,1.28064459,3030.7,3030.4,0.8608724]
[1763443896568,0.0444,3030.5,3030.1,0.8608724]
[1763443896757,0.4776,3030.6,3029.9,0.8608724]
[1763443896758,0.4745,3030.3,3029.9,0.8608724]
[1763443896957,0.4776,3030.5,3029.9,0.8608724]
[1763443897159,0.4788,3030.0,3029.9,0.8608724]
[1763443897338,1.2394,3030.0,3029.9,0.8608724]
[1763443897739,0.283,3030.0,3029.9,0.8608724]
[1763443898171,0.7618,3030.0,3029.9,0.8608724]
[1763443898347,0.7618,3030.0,3029.7,0.8608724]
[1763443898348,1.2394,3030.0,3029.7,0.8608724]
[1763443898546,0.0444,3029.8,3029.7,0.8608724]
[1763443898939,0.522,3029.8,3029.6,0.8608724]
[1763443899147,0.522,3029.8,3029.5,0.8608724]
[1763443899148,0.4776,3029.8,3029.5,0.8608724]
[1763443899490,0.04125821,3029.7,3029.0,0.8608724]
[1763443899694,0.0326,3029.1,3029.0,0.8608724]
[1763443899838,0.7932,3029.1,3028.9,0.8608724]
[1763443900044,0.4744,3029.0,3028.9,0.8608724]
[1763443900268,0.952,3029.0,3028.8,0.8608724]
[1763443900444,0.1996,3028.9,3028.8,0.8608724]
[1763443900650,1.156,3028.9,3028.8,0.8608724]
[1763443901178,1.156,3028.9,3028.7,0.8608724]
[1763443901391,0.51437047,3028.8,3028.5,0.8608724]
[1763443901540,0.4788,3028.5,3028.4,0.001]
[1763443901746,0.80307455,3028.5,3028.4,0.001]
[1763443901972,1.28067455,3028.5,3028.0,0.001]
[1763443902181,0.0316,3028.1,3028.0,0.001]
[1763443902380,0.55048001,3028.1,3027.3,0.8608724]
[1763443902581,0.4331,3027.4,3027.3,0.8608724]
[1763443902818,0.7161,3027.4,3027.3,0.8608724]
[1763443903105,0.7161,3027.4,3027.2,0.8608724]
[1763443903106,0.7618,3027.4,3027.2,0.8608724]
[1763443903254,0.4776,3027.3,3027.2,0.8608724]
[1763443903455,0.9564,3027.3,3027.0,0.8608724]
[1763443903699,0.0304,3027.1,3026.9,0.8608724]
[1763443903853,0.283,3027.4,3026.9,0.8608724]
[1763443904049,0.283,3027.3,3026.9,1.09333566]
[1763443904585,0.4788,3027.0,3026.8,0.8608724]
[1763443904792,0.4776,3027.2,3026.9,0.001]
[1763443904987,0.283,3027.3,3026.9,0.001]
[1763443904988,0.4776,3027.1,3026.9,0.001]
[1763443905284,3.0644,3027.0,3026.9,0.001]
[1763443905487,3.97139264,3027.0,3026.9,0.001]
[1763443905687,4.44899264,3027.0,3026.9,0.001]
[1763443906055,2.06299264,3027.0,3026.9,0.001]
[1763443909363,2.34599264,3027.0,3026.9,0.001]
[1763443909698,2.8656045,3027.0,3026.9,0.001]
[1763443912779,2.5826045,3027.0,3026.9,0.001]
[1763443912968,2.8656045,3027.0,3026.9,0.001]
[1763443913296,2.1050045,3027.0,3026.9,0.001]
[1763443913485,2.3880045,3027.0,3026.9,0.001]
[1763443914295,2.8656045,3027.0,3026.9,0.001]
[1763443915286,5.2516045,3027.0,3026.9,0.001]
[1763443916801,1.4266045,3027.0,3026.9,0.5007]
[1763443916999,2.9026045,3027.0,3026.9,0.001]
[1763443917199,1.7096045,3027.0,3026.9,0.001]
[1763443918394,2.6660045,3027.0,3026.9,0.001]
[1763443919213,1.7096045,3027.0,3026.9,0.001]
[1763443919391,2.6660045,3027.0,3026.9,0.001]
[1763443920513,1.7096045,3027.0,3026.9,0.001]
[1763443920718,1.7096045,3027.0,3026.9,0.5007]
[1763443920719,0.51961186,3027.0,3026.9,0.5007]
[1763443920916,0.80261186,3027.0,3026.9,1.396104]
[1763443921531,0.283,3027.0,3026.9,1.396104]
[1763443922311,0.002,3028.0,3027.0,0.405504]
[1763443922614,0.002,3028.0,3027.9,0.1949]
[1763443922923,0.285,3028.0,3027.9,0.1949]
[1763443923120,3.57999264,3028.0,3027.9,0.1949]
[1763443923324,3.57999264,3028.0,3027.6,0.1949]
[1763443923523,3.57999264,3028.0,3027.2,0.405504]
[1763443923524,0.1996,3027.9,3027.2,0.405504]
[1763443923722,1.10659264,3027.9,3027.2,0.405504]
[1763443923916,0.1996,3027.9,3027.2,0.405504]
[1763443924116,1.10659264,3027.9,3027.2,0.405504]
[1763443924923,0.51945045,3027.8,3027.2,0.405504]
[1763443925120,0.51945045,3027.8,3027.2,0.895404]
[1763443925607,0.51945045,3027.8,3027.2,0.405504]
[1763443925810,0.51945045,3027.8,3027.4,0.405504]
[1763443926216,0.51945045,3027.8,3027.4,0.863304]
[1763443926445,0.51945045,3027.8,3027.5,0.17225168]
[1763443926661,0.51945045,3027.8,3027.7,0.883104]
[1763443927145,0.51945045,3027.8,3027.7,1.340904]
[1763443927860,0.285,3028.0,3027.8,0.405504]
[1763443928017,0.002,3028.0,3027.9,0.883104]
[1763443928338,0.285,3028.0,3027.9,1.13188209]
[1763443928536,0.285,3028.0,3027.9,1.58968209]
[1763443929252,0.285,3028.0,3027.9,3.3114269]
[1763443929617,0.285,3028.0,3027.9,2.8536269]
[1763443929856,1.2367,3028.0,3027.5,0.86223741]
[1763443930157,1.2367,3028.0,3027.4,1.14919489]
[1763443930158,0.04128273,3027.9,3027.4,1.14919489]
[1763443930344,0.002,3028.0,3027.8,0.86306617]
[1763443930650,0.283,3027.9,3027.8,0.86306617]
[1763443930820,0.283,3027.9,3027.7,1.14919489]
[1763443931015,0.283,3027.9,3027.7,1.48206886]
[1763443931220,0.80240386,3027.9,3027.8,1.14919489]
[1763443931455,0.80240386,3027.9,3027.7,1.48206886]
[1763443931628,0.9517,3027.8,3027.6,1.14919489]
[1763443931829,0.4626,3027.8,3027.6,1.14919489]
[1763443932037,0.4626,3027.8,3027.1,0.1949]
[1763443932038,0.0337,3027.7,3027.5,1.14919489]
[1763443932231,0.99970386,3027.9,3027.6,0.4776]
[1763443932232,0.80240386,3027.9,3027.6,0.4776]
[1763443932453,0.80240386,3027.9,3027.7,0.8635374]
[1763443932646,0.99970386,3027.9,3027.8,0.8635374]
[1763443933026,1.46230386,3027.9,3027.8,0.8635374]
[1763443933362,1.46230386,3027.9,3027.4,0.8635374]
[1763443933363,1.95140386,3027.9,3027.4,0.8635374]
[1763443933531,0.4626,3027.5,3027.3,0.8635374]
[1763443933727,0.283,3027.4,3027.3,0.86388546]
[1763443933930,0.3212,3027.4,3027.2,0.86388546]
[1763443934659,0.51940386,3027.9,3027.4,0.405504]
[1763443934844,0.51940386,3027.9,3027.8,1.62679489]
[1763443935046,0.80240386,3027.9,3027.8,1.62679489]
[1763443935227,3.18840386,3027.9,3027.8,1.62679489]
[1763443935432,2.45800386,3027.9,3027.7,1.14919489]
[1763443935730,1.46230386,3027.9,3027.7,1.14919489]
[1763443936869,1.46230386,3027.9,3027.8,0.86243808]
[1763443937067,1.46230386,3027.9,3027.6,0.86243808]
[1763443937274,0.4626,3027.7,3027.6,0.86243808]
[1763443937862,0.9517,3027.7,3027.5,0.86243808]
[1763443938052,0.9517,3027.7,3027.4,0.86243808]
[1763443938053,0.0337,3027.5,3027.4,0.86243808]
[1763443938247,0.9517,3027.5,3027.4,0.86243808]
[1763443938641,0.9517,3027.5,3027.2,1.14919489]
[1763443938642,0.9517,3027.5,3027.1,0.86243808]
[1763443938841,0.0337,3027.3,3027.0,0.86243808]
[1763443939041,0.0337,3027.3,3027.1,0.86243808]
[1763443939254,0.5279,3027.3,3027.1,0.86243808]
[1763443939579,0.4505,3027.2,3027.0,0.86243808]
[1763443940061,0.9447,3027.2,3027.1,0.001]
[1763443943253,0.1973,3027.9,3027.1,0.001]
[1763443943254,0.90899264,3028.0,3027.1,0.6462]
[1763443943457,0.283,3027.9,3027.3,0.4546]
[1763443943788,0.283,3027.9,3027.7,0.86243808]
[1763443944000,0.4673,3027.9,3027.7,0.86243808]
[1763443944146,0.002,3028.0,3027.8,1.31703808]
[1763443944342,0.002,3028.0,3027.9,0.86243808]
[1763443944570,0.285,3028.0,3027.9,0.86243808]
[1763443944756,0.80440139,3028.0,3027.8,1.14919489]
[1763443944961,0.52140139,3028.0,3027.9,0.4546]
[1763443945178,0.52140139,3028.0,3027.9,3.29411081]
[1763443945361,3.19040139,3028.0,3027.9,3.26108463]
[1763443945751,2.671,3028.0,3027.9,3.26264554]
[1763443945971,0.285,3028.0,3027.9,3.26264554]
[1763443946254,0.285,3028.0,3027.9,2.80720891]
[1763443946445,0.285,3028.0,3027.9,2.12677309]
[1763443947054,0.002,3028.0,3027.9,2.17586909]
[1763443947375,0.285,3028.0,3027.9,2.62927087]
[1763443947678,0.285,3028.0,3027.9,2.17587087]
[1763443947897,0.285,3028.0,3027.9,2.41357429]
[1763443948279,0.7355,3028.0,3027.9,1.72127087]
[1763443948453,1.2297,3028.0,3027.9,0.86122702]
[1763443948652,1.2297,3028.0,3027.1,2.29403182]
[1763443948653,1.2297,3028.0,3027.8,0.86122702]
[1763443948871,0.285,3028.0,3027.7,0.86122702]
[1763443949073,0.002,3028.0,3027.8,0.86122702]
[1763443949247,0.52141196,3028.0,3027.9,1.14830269]
[1763443949448,0.80441196,3028.0,3027.9,1.14830269]
[1763443949643,0.285,3028.0,3027.9,1.14830269]
[1763443950148,0.285,3028.0,3027.8,1.72127087]
[1763443950349,0.7792,3028.0,3027.9,1.14705021]